fUSD/lending_fUSD_20250620
["ID","MTS","AMOUNT","RATE_DAILY","PERIOD"]
[366777153,1750441868760,-490.0,0.00028571,4]
[366777154,1750441868771,-159.65092369,0.00028571,4]
[366777155,1750441868782,-3367.75,0.00028571,4]
[366777156,1750441868792,-490.0,0.00028571,4]
[366777157,1750441868802,-490.0,0.00028572,4]
[366777158,1750441868813,-490.0,0.00028572,4]
[366777159,1750441868823,-490.0,0.00028572,4]
[366777160,1750441868833,-490.0,0.00028572,4]
[366777161,1750441868843,-490.0,0.00028572,4]
[366777162,1750441868853,-573.72489362,0.00028572,4]
[366777163,1750441868863,-490.0,0.00028572,4]
[366777164,1750441868874,-563.45,0.00028572,4]
[366777165,1750441868884,-490.0,0.00028572,4]
[366777166,1750441868894,-490.0,0.00028572,4]
[366777167,1750441868904,-522.03973597,0.00028572,4]
[366777168,1750441868914,-490.0,0.00028572,4]
[366777169,1750441868924,-490.0,0.00028572,4]
[366777170,1750441868934,-490.0,0.00028572,4]
[366777171,1750441868943,-494.61092042,0.00028572,4]
[366777172,1750441868954,-1271.53,0.00028572,2]
[366777173,1750441868964,-300.61130751,0.00028572,4]
[366777174,1750441868973,-490.0,0.00028572,4]
[366777175,1750441868983,-490.0,0.00028572,4]
[366777176,1750441868996,-490.0,0.00028572,4]
[366777177,1750441869007,-490.0,0.00028572,4]
[366777178,1750441869017,-1503.55,0.00028572,4]
[366777179,1750441869027,-763.63,0.00028572,4]
[366777180,1750441869037,-1179.75,0.00028572,4]
[366777181,1750441869047,-490.0,0.00028572,4]
[366777182,1750441869057,-490.0,0.00028572,4]
[366777183,1750441869067,-1945.11,0.00028572,4]
[366777184,1750441869076,-490.0,0.00028572,4]
[366777185,1750441869087,-2442.78,0.00028572,4]
[366777186,1750441869097,-490.0,0.00028572,4]
[366777187,1750441869107,-628.75,0.00028572,4]
[366777188,1750441869116,-817.61,0.00028572,4]
[366777189,1750441869126,-490.0,0.00028572,4]
[366777190,1750441869140,-490.0,0.00028572,4]
[366777191,1750441869151,-490.0,0.00028572,4]
[366777192,1750441869162,-490.0,0.00028572,4]
[366777193,1750441869172,-490.0,0.00028572,4]
[366777194,1750441869182,-608.80921513,0.00028572,4]
[366777195,1750441869193,-490.0,0.00028572,4]
[366777196,1750441869203,-599.87,0.00028572,4]
[366777197,1750441869213,-663.35,0.00028572,4]
[366777198,1750441869224,-490.0,0.00028572,4]
[366777199,1750441869234,-655.03,0.00028572,4]
[366777200,1750441869246,-490.0,0.00028572,4]
[366777201,1750441869256,-490.0,0.00028572,4]
[366777202,1750441869265,-490.0,0.00028572,4]
[366777203,1750441869275,-490.0,0.00028572,4]
[366777204,1750441869284,-490.0,0.00028572,4]
[366777205,1750441869294,-490.0,0.00028572,4]
[366777206,1750441869304,-621.91,0.00028572,4]
[366777207,1750441869313,-490.0,0.00028572,4]
[366777208,1750441869323,-668.24,0.00028572,4]
[366777209,1750441869333,-490.0,0.00028572,4]
[366777210,1750441869344,-490.0,0.00028572,4]
[366777211,1750441869354,-490.0,0.00028572,4]
[366777212,1750441869364,-490.0,0.00028572,4]
[366777213,1750441869374,-490.0,0.00028572,4]
[366777214,1750441869384,-1745.46,0.00028572,4]
[366777215,1750441869394,-1258.92,0.00028572,4]
[366777216,1750441869404,-242.03501114,0.00028572,4]
[366777217,1750441869414,-490.0,0.00028572,4]
[366777218,1750441869424,-490.0,0.00028572,4]
[366777219,1750441869433,-903.3,0.00028572,4]
[366777220,1750441869443,-490.0,0.00028572,4]
[366777221,1750441869453,-490.0,0.00028572,4]
[366777222,1750441869464,-490.0,0.00028572,4]
[366777223,1750441869474,-490.0,0.00028572,4]
[366777224,1750441869484,-562.77,0.00028572,4]
[366777225,1750441869495,-155.39650855,0.00028572,4]
[366777226,1750441869505,-490.0,0.00028572,4]
[366777227,1750441869515,-490.0,0.00028572,4]
[366777228,1750441869525,-490.0,0.00028572,4]
[366777229,1750441869535,-490.0,0.00028572,4]
[366777230,1750441869546,-490.0,0.00028572,4]
[366777231,1750441869556,-490.0,0.00028572,4]
[366777232,1750441869566,-490.0,0.00028572,4]
[366777233,1750441869576,-519.56342606,0.00028572,4]
[366777234,1750441869588,-3813.73861289,0.00028585,2]
[366777235,1750441869598,-151.0,0.000286,7]
[366777236,1750441869609,-179.472908,0.000286,7]
[366777237,1750441869618,-151.0,0.000286,7]
[366777238,1750441869629,-151.0,0.000286,7]
[366777239,1750441869639,-151.0,0.000286,7]
[366777240,1750441869649,-151.0,0.000286,7]
[366777241,1750441869659,-151.0,0.000286,7]
[366777242,1750441869670,-151.0,0.000286,7]
[366777243,1750441869681,-342.508516,0.000286,7]
[366777244,1750441869691,-342.508516,0.000286,7]
[366777245,1750441869701,-490.0,0.00028671,4]
[366777246,1750441869712,-151.0,0.00028671,7]
[366777247,1750441869722,-490.0,0.00028671,4]
[366777248,1750441869732,-151.0,0.00028671,7]
[366777249,1750441869743,-202.0,0.00028671,7]
[366777250,1750441869752,-490.0,0.00028671,4]
[366777251,1750441869762,-490.0,0.00028671,4]
[366777252,1750441869774,-490.0,0.00028671,4]
[366777253,1750441869785,-490.0,0.00028671,4]
[366777254,1750441869796,-490.0,0.00028671,4]
[366777255,1750441869807,-490.0,0.00028671,4]
[366777256,1750441869818,-490.0,0.00028671,4]
[366777257,1750441869830,-490.0,0.00028671,4]
[366777258,1750441869840,-490.0,0.00028671,4]
[366777259,1750441869851,-490.0,0.00028671,4]
[366777260,1750441869861,-490.0,0.00028671,4]
[366777261,1750441869871,-490.0,0.00028671,4]
[366777262,1750441869882,-490.0,0.00028671,4]
[366777263,1750441869892,-612.05786459,0.00028671,4]
[366777264,1750441869902,-490.0,0.00028671,4]
[366777265,1750441869913,-490.0,0.00028671,4]
[366777266,1750441869923,-490.0,0.00028671,4]
[366777267,1750441869933,-490.0,0.00028671,4]
[366777268,1750441869943,-151.0,0.00028671,7]
[366777269,1750441869953,-490.0,0.00028671,4]
[366777270,1750441869962,-490.0,0.00028671,4]
[366777271,1750441869972,-490.0,0.00028671,4]
[366777272,1750441869983,-444.8157,0.00028671,7]
[366777273,1750441869994,-444.8157,0.00028671,7]
[366777274,1750441870003,-646.36,0.00028672,4]
[366777275,1750441870014,-2163.38427976,0.00028762,19]
[366777276,1750441870024,-2012.0,0.00028767,7]
[366777277,1750441870034,-6952.0,0.000288,2]
[366777278,1750441870044,-490.0,0.00028835,4]
[366777279,1750441870054,-490.0,0.00028844,4]
[366777280,1750441870063,-490.0,0.00028844,4]
[366777281,1750441870073,-490.0,0.00028844,4]
[366777282,1750441870084,-490.0,0.00028844,4]
[366777283,1750441870094,-490.0,0.00028844,4]
[366777284,1750441870104,-490.0,0.00028844,4]
[366777285,1750441870114,-685.81,0.00028844,4]
[366777286,1750441870124,-646.05,0.00028844,4]
[366777287,1750441870135,-490.0,0.00028845,4]
[366777288,1750441870151,-503.60628774,0.00028845,4]
[366777289,1750441870161,-351.87824071,0.00028845,4]
[366777290,1750441870170,-490.0,0.00028845,4]
[366777291,1750441870181,-490.0,0.00028845,4]
[366777292,1750441870191,-490.0,0.00028845,4]
[366777293,1750441870202,-490.0,0.00028845,4]
[366777294,1750441870213,-490.0,0.00028845,4]
[366777295,1750441870227,-490.0,0.00028845,4]
[366777296,1750441870237,-625.05,0.00028845,4]
[366777297,1750441870249,-490.0,0.00028845,4]
[366777298,1750441870259,-760.46,0.00028845,4]
[366777299,1750441870269,-490.0,0.00028845,4]
[366777300,1750441870279,-490.0,0.00028845,4]
[366777301,1750441870289,-476.34034563,0.00028845,4]
[366777302,1750441870660,-31.6708312,0.00028845,4]
[366777303,1750441870670,-490.0,0.00028845,4]
[366777304,1750441870680,-490.0,0.00028845,4]
[366777305,1750441870690,-490.0,0.00028845,4]
[366777306,1750441870701,-490.0,0.00028845,4]
[366777307,1750441870712,-490.0,0.00028845,4]
[366777308,1750441870722,-490.0,0.00028845,4]
[366777309,1750441870732,-605.39,0.00028845,4]
[366777310,1750441870746,-3367.75,0.00028845,4]
[366777311,1750441870756,-490.0,0.00028845,4]
[366777312,1750441870767,-490.0,0.00028846,4]
[366777313,1750441870777,-490.0,0.00028846,4]
[366777314,1750441870788,-490.0,0.00028846,4]
[366777315,1750441870798,-490.0,0.00028846,4]
[366777316,1750441870809,-490.0,0.00028846,4]
[366777317,1750441870825,-490.0,0.00028846,4]
[366777318,1750441870835,-563.45,0.00028846,4]
[366777319,1750441870845,-490.0,0.00028846,4]
[366777320,1750441870855,-218.29553231,0.00028846,4]
[366777321,1750441870865,-490.0,0.00028846,4]
[366777322,1750441870875,-490.0,0.00028846,4]
[366777323,1750441870885,-490.0,0.00028846,4]
[366777324,1750441870895,-1271.53,0.00028846,2]
[366777325,1750441870905,-490.0,0.00028846,4]
[366777326,1750441870915,-490.0,0.00028846,4]
[366777327,1750441870925,-490.0,0.00028846,4]
[366777328,1750441870935,-490.0,0.00028846,4]
[366777329,1750441870945,-602.17463128,0.00028846,4]
[366777330,1750441870958,-901.37536872,0.00028846,4]
[366777331,1750441870968,-763.63,0.00028846,4]
[366777332,1750441870978,-1179.75,0.00028846,4]
[366777333,1750441870989,-490.0,0.00028846,4]
[366777334,1750441871000,-490.0,0.00028846,4]
[366777335,1750441871011,-1945.11,0.00028846,4]
[366777336,1750441871021,-490.0,0.00028846,4]
[366777337,1750441871031,-2442.78,0.00028846,4]
[366777338,1750441871041,-490.0,0.00028846,4]
[366777339,1750441871050,-628.75,0.00028846,4]
[366777340,1750441871060,-817.61,0.00028846,4]
[366777341,1750441871070,-1.37983132,0.00028846,4]
[366777342,1750441871081,-373.77361933,0.00028846,4]
[366777343,1750441871191,-261.71164025,0.00026928,4]
[366777344,1750441871214,-228.28835975,0.00026928,4]
[366777345,1750441871224,-490.0,0.0002857,4]
[366777346,1750441871233,-114.84654935,0.00028846,4]
[366777347,1750441871245,-490.0,0.00028846,4]
[366777348,1750441871256,-95.44956506,0.00028846,4]
[366777349,1750442145508,185.22,0.00022528,2]
[366777352,1750442324746,152.32,0.00013699,2]
[366777353,1750442464172,46406.0,0.000231,2]
[366777355,1750442589854,5563.0,0.000231,3]
[366777356,1750442590162,615.0,0.000228,2]
[366777358,1750442778463,5563.0,0.00023,5]
[366777364,1750443031443,-300.0,0.00023349,2]
[366777365,1750443031453,-382.949735,0.0002468,2]
[366777366,1750443031463,-529.019365,0.00024779,2]
[366777367,1750443031476,-473.01493348,0.00024779,2]
[366777368,1750443031486,-300.0,0.00024779,2]
[366777369,1750443031496,-300.0,0.00024779,2]
[366777370,1750443031506,-300.0,0.00024779,2]
[366777371,1750443031517,-1200.0,0.00024779,2]
[366777372,1750443031531,-17545.78167947,0.0002478,2]
[366777373,1750443031705,-580.36222564,0.0002478,2]
[366777374,1750443031717,-21587.84518555,0.0002478,2]
[366777382,1750443031812,-3087.7,0.0002478,2]
[366777386,1750443031919,-32553.32090934,0.0002478,2]
[366777387,1750443031929,-250.0,0.0002478,2]
[366777388,1750443031940,-169.3,0.00024783,2]
[366777389,1750443031950,-2000.0,0.00024859,120]
[366777390,1750443031960,-991.55,0.00024872,2]
[366777391,1750443031970,-152.32,0.00024907,2]
[366777392,1750443031980,-1852.42,0.00024909,2]
[366777393,1750443031990,-1009.8,0.00024909,2]
[366777394,1750443032000,-15519.8,0.00024909,2]
[366777395,1750443032010,-2751.0,0.0002492,2]
[366777396,1750443032020,-1000.0,0.0002492,2]
[366777397,1750443032031,-200.0,0.00025043,2]
[366777398,1750443032040,-1848.33533834,0.000251,12]
[366777399,1750443032050,-200.0,0.000251,7]
[366777401,1750443032060,-208.74,0.00025154,2]
[366777403,1750443032072,-202.0,0.00025194,2]
[366777405,1750443032093,-200.0,0.00025194,2]
[366777406,1750443032105,-2089.54130772,0.00025288,2]
[366777429,1750443037394,-173.86162,0.00025161,2]
[366777431,1750443037404,-1688.22838,0.00025288,2]
[366777433,1750443037416,-867.71430762,0.00025288,2]
[366777435,1750443037426,-222.0,0.0002529,2]
[366777437,1750443037436,-18994.59993255,0.00025298,2]
[366777439,1750443037448,-4905.40006745,0.00025298,2]
[366777441,1750443037458,-1848.3353381,0.00025383,13]
[366777443,1750443037467,-339.55,0.00025395,120]
[366777444,1750443037477,-150.0,0.00025521,2]
[366777445,1750443037487,-300.0,0.00025629,2]
[366777446,1750443037497,-500.0,0.00025651,2]
[366777447,1750443037507,-167.07,0.00025653,2]
[366777448,1750443037518,-666.0,0.00025744,2]
[366777449,1750443037530,-1848.3353381,0.00025866,14]
[366777450,1750443037541,-1001.57,0.00026,2]
[366777451,1750443037550,-264.15,0.0002615,2]
[366777452,1750443037560,-2552.38320639,0.00026178,2]
[366777453,1750443037585,-56.79221576,0.00026178,2]
[366777454,1750443037596,-250.0,0.00026184,2]
[366777455,1750443037606,-8973.6882,0.0002627,2]
[366777456,1750443037616,-221.09428797,0.00026278,2]
[366777457,1750443037626,-1705.2225,0.00026279,2]
[366777458,1750443037635,-556.65190149,0.00026279,2]
[366777459,1750443037647,-443.34809851,0.00026279,2]
[366777460,1750443037659,-296.4011891,0.00026279,2]
[366777461,1750443037668,-2812.3327,0.0002628,2]
[366777462,1750443037678,-250.0,0.00026297,2]
[366777463,1750443037687,-397.4905301,0.00026348,14]
[366777464,1750443037699,-1450.844808,0.00026348,14]
[366777465,1750443037711,-3183.65532702,0.00026368,3]
[366777466,1750443037723,-1591.82766351,0.00026369,3]
[366777467,1750443037732,-490.0,0.00026369,4]
[366777468,1750443037743,-490.0,0.00026369,4]
[366777469,1750443037753,-490.0,0.00026369,4]
[366777470,1750443037763,-490.0,0.00026369,4]
[366777472,1750443037773,-490.0,0.00026369,4]
[366777474,1750443037782,-490.0,0.00026369,4]
[366777476,1750443037793,-490.0,0.00026369,4]
[366777478,1750443037803,-490.0,0.00026369,4]
[366777480,1750443037812,-490.0,0.00026369,4]
[366777482,1750443037824,-490.0,0.00026369,4]
[366777484,1750443037833,-490.0,0.00026369,4]
[366777486,1750443037843,-490.0,0.00026369,4]
[366777488,1750443037853,-490.0,0.00026369,4]
[366777490,1750443037862,-490.0,0.00026369,4]
[366777492,1750443037872,-490.0,0.00026369,4]
[366777494,1750443037882,-490.0,0.00026369,4]
[366777495,1750443037892,-490.0,0.00026369,4]
[366777497,1750443037902,-139.91572377,0.00026369,4]
[366777503,1750443037937,-350.08427623,0.00026369,4]
[366777506,1750443037947,-490.0,0.00026369,4]
[366777509,1750443037957,-490.0,0.00026369,4]
[366777511,1750443037966,-490.0,0.00026369,4]
[366777514,1750443037977,-490.0,0.00026369,4]
[366777517,1750443037987,-490.0,0.00026369,4]
[366777519,1750443037998,-490.0,0.00026369,4]
[366777521,1750443038008,-490.0,0.00026369,4]
[366777523,1750443038017,-490.0,0.00026369,4]
[366777525,1750443038027,-490.0,0.00026369,4]
[366777527,1750443038036,-500.0,0.00026369,4]
[366777529,1750443038046,-490.0,0.00026369,4]
[366777531,1750443038055,-490.0,0.00026369,4]
[366777533,1750443038065,-490.0,0.00026369,4]
[366777535,1750443038078,-490.0,0.00026369,4]
[366777537,1750443038088,-490.0,0.00026369,4]
[366777539,1750443038097,-490.0,0.00026369,4]
[366777541,1750443038107,-490.0,0.00026369,4]
[366777543,1750443038116,-610.46,0.00026369,4]
[366777545,1750443038126,-490.0,0.00026369,4]
[366777547,1750443038135,-490.0,0.00026369,4]
[366777549,1750443038145,-432.7,0.00026369,4]
[366777551,1750443038155,-490.0,0.00026369,4]
[366777553,1750443038164,-490.0,0.00026369,4]
[366777555,1750443038176,-490.0,0.00026369,4]
[366777556,1750443038189,-490.0,0.00026369,4]
[366777558,1750443038198,-490.0,0.00026369,4]
[366777560,1750443038208,-490.0,0.00026369,4]
[366777562,1750443038218,-110.03071557,0.00026369,4]
[366777565,1750443038230,-379.96928443,0.00026369,4]
[366777567,1750443038240,-68.12170673,0.00026369,4]
[366777569,1750443038252,-421.87829327,0.00026369,4]
[366777571,1750443038261,-490.0,0.00026369,4]
[366777573,1750443038271,-490.0,0.00026369,4]
[366777575,1750443038281,-490.0,0.00026369,4]
[366777577,1750443038291,-490.0,0.00026369,4]
[366777579,1750443038301,-41.02170673,0.00026373,2]
[366777581,1750443038312,-281.78651295,0.00026373,2]
[366777699,1750443039660,-0.41447573,0.00026373,2]
[366777702,1750443039672,-176.77730459,0.00026373,2]
[366777704,1750443039681,-258.0,0.00026375,2]
[366777706,1750443039692,-490.0,0.00026377,4]
[366777708,1750443039701,-464.23889366,0.00026377,4]
[366777710,1750443039711,-155.84472599,0.00026377,4]
[366777712,1750443039722,-490.0,0.00026377,4]
[366777714,1750443039731,-490.0,0.00026377,4]
[366777716,1750443039741,-490.0,0.00026377,4]
[366777718,1750443039750,-490.0,0.00026377,4]
[366777720,1750443039759,-490.0,0.00026377,4]
[366777722,1750443039769,-824.05,0.00026377,4]
[366777724,1750443039779,-490.0,0.00026377,4]
[366777726,1750443039789,-490.0,0.00026377,4]
[366777728,1750443039799,-490.0,0.00026377,4]
[366777730,1750443039808,-376.80615616,0.00026377,4]
[366777732,1750443039819,-490.0,0.00026377,4]
[366777734,1750443039829,-507.3,0.00026377,4]
[366777736,1750443039839,-490.0,0.00026377,4]
[366777737,1750443039848,-490.0,0.00026377,4]
[366777738,1750443039859,-490.0,0.00026377,4]
[366777740,1750443039869,-906.12,0.00026377,4]
[366777742,1750443039879,-359.83251503,0.00026377,4]
[366777744,1750443039890,-490.0,0.00026377,4]
[366777746,1750443039900,-490.0,0.00026377,4]
[366777748,1750443039910,-490.0,0.00026377,4]
[366777750,1750443039919,-490.0,0.00026377,4]
[366777752,1750443039929,-526.28,0.00026377,4]
[366777754,1750443039939,-490.0,0.00026377,4]
[366777756,1750443039948,-617.35077338,0.00026377,4]
[366777758,1750443039958,-490.0,0.00026377,4]
[366777760,1750443039968,-490.0,0.00026377,4]
[366777762,1750443039978,-490.0,0.00026377,4]
[366777764,1750443039987,-628.21,0.00026377,4]
[366777766,1750443039997,-490.0,0.00026377,4]
[366777768,1750443040007,-490.0,0.00026377,4]
[366777770,1750443040017,-490.0,0.00026377,4]
[366777772,1750443040027,-490.0,0.00026377,4]
[366777774,1750443040036,-490.0,0.00026377,4]
[366777776,1750443040047,-490.0,0.00026377,4]
[366777778,1750443040057,-490.0,0.00026377,4]
[366777780,1750443040067,-490.0,0.00026377,4]
[366777782,1750443040077,-490.0,0.00026377,4]
[366777784,1750443040087,-490.0,0.00026377,4]
[366777786,1750443040097,-922.1,0.00026377,4]
[366777788,1750443040107,-601.01,0.00026377,4]
[366777790,1750443040117,-881.03,0.00026377,4]
[366777792,1750443040126,-490.0,0.00026377,4]
[366777794,1750443040135,-490.0,0.00026377,4]
[366777796,1750443040146,-490.0,0.00026377,4]
[366777798,1750443040157,-490.0,0.00026377,4]
[366777800,1750443040167,-490.0,0.00026377,4]
[366777802,1750443040176,-490.0,0.00026377,4]
[366777804,1750443040186,-603.34,0.00026377,4]
[366777806,1750443040195,-490.0,0.00026377,4]
[366777808,1750443040204,-490.0,0.00026377,4]
[366777810,1750443040214,-490.0,0.00026377,4]
[366777812,1750443040224,-490.0,0.00026377,4]
[366777814,1750443040236,-500.0,0.00026377,2]
[366777816,1750443040246,-490.0,0.00026377,4]
[366777818,1750443040256,-490.0,0.00026377,4]
[366777820,1750443040266,-772.5,0.00026377,4]
[366777822,1750443040275,-490.0,0.00026377,2]
[366777824,1750443040285,-490.0,0.00026378,4]
[366777826,1750443040295,-490.0,0.00026378,4]
[366777828,1750443040304,-490.0,0.00026378,4]
[366777830,1750443040314,-490.0,0.00026378,4]
[366777832,1750443040324,-490.0,0.00026378,4]
[366777833,1750443040334,-490.0,0.00026378,4]
[366777835,1750443040344,-242.43,0.00026378,4]
[366777837,1750443040354,-490.0,0.00026378,4]
[366777839,1750443040363,-383.57,0.00026378,4]
[366777841,1750443040372,-490.0,0.00026378,4]
[366777843,1750443040382,-490.0,0.00026378,4]
[366777844,1750443040391,-490.0,0.00026378,4]
[366777846,1750443040402,-490.0,0.00026378,4]
[366777848,1750443040412,-490.0,0.00026378,4]
[366777850,1750443040421,-490.0,0.00026378,4]
[366777852,1750443040430,-505.48100314,0.00026378,4]
[366777854,1750443040440,-490.0,0.00026378,4]
[366777856,1750443040449,-213.80747807,0.00026378,4]
[366777858,1750443040459,-490.0,0.00026378,4]
[366777860,1750443040469,-245.42503366,0.00026378,4]
[366777862,1750443040479,-490.0,0.00026378,4]
[366777864,1750443040488,-490.0,0.00026378,4]
[366777866,1750443040498,-490.0,0.00026378,4]
[366777868,1750443040508,-490.0,0.00026378,4]
[366777870,1750443040517,-197.74,0.00026378,4]
[366777872,1750443040533,-490.0,0.00026378,4]
[366777874,1750443040544,-490.0,0.00026378,4]
[366777876,1750443040554,-490.0,0.00026378,4]
[366777877,1750443040563,-490.0,0.00026378,4]
[366777879,1750443040575,-490.0,0.00026378,4]
[366777882,1750443040586,-490.0,0.00026378,4]
[366777884,1750443040596,-490.0,0.00026378,4]
[366777886,1750443040606,-490.0,0.00026378,4]
[366777887,1750443040616,-490.0,0.00026378,4]
[366777889,1750443040626,-490.0,0.00026378,4]
[366777891,1750443040635,-490.0,0.00026378,4]
[366777893,1750443040646,-490.0,0.00026378,4]
[366777896,1750443040655,-490.0,0.00026378,4]
[366777898,1750443040666,-490.0,0.00026378,4]
[366777899,1750443040675,-490.0,0.00026378,4]
[366777901,1750443040685,-490.0,0.00026378,4]
[366777903,1750443040695,-490.0,0.00026378,4]
[366777906,1750443040706,-490.0,0.00026378,4]
[366777907,1750443040716,-490.0,0.00026378,4]
[366777909,1750443040725,-490.0,0.00026378,4]
[366777912,1750443040736,-490.0,0.00026378,4]
[366777914,1750443040746,-572.2998303,0.00026378,4]
[366777915,1750443040756,-490.0,0.00026378,4]
[366777917,1750443040765,-490.0,0.00026378,4]
[366777920,1750443040776,-375.64,0.00026378,4]
[366777922,1750443040786,-490.0,0.00026378,4]
[366777924,1750443040796,-204.61956627,0.00026378,4]
[366777926,1750443040808,-490.0,0.00026378,4]
[366777928,1750443040818,-490.0,0.00026378,4]
[366777930,1750443040829,-490.0,0.00026378,4]
[366777932,1750443040839,-490.0,0.00026378,4]
[366777934,1750443040850,-490.0,0.00026378,4]
[366777936,1750443040860,-490.0,0.00026378,4]
[366777938,1750443040870,-490.0,0.00026378,4]
[366777940,1750443040879,-217.46310547,0.00026378,4]
[366777942,1750443040889,-490.0,0.00026378,4]
[366777944,1750443040899,-706.33,0.00026378,4]
[366777946,1750443040909,-490.0,0.00026378,4]
[366777948,1750443040920,-453.88885919,0.00026378,4]
[366777950,1750443040930,-568.64,0.00026378,4]
[366777952,1750443040941,-490.0,0.00026378,4]
[366777954,1750443040951,-490.0,0.00026378,4]
[366777956,1750443040961,-490.0,0.00026378,4]
[366777958,1750443040972,-490.0,0.00026378,4]
[366777960,1750443040982,-490.0,0.00026378,4]
[366777962,1750443040992,-490.0,0.00026378,4]
[366777964,1750443041002,-490.0,0.00026378,4]
[366777966,1750443041012,-490.0,0.00026378,4]
[366777968,1750443041022,-533.94,0.00026378,4]
[366777970,1750443041032,-490.0,0.00026378,4]
[366777972,1750443041042,-490.0,0.00026378,4]
[366777974,1750443041053,-490.0,0.00026378,4]
[366777976,1750443041063,-490.0,0.00026378,4]
[366777978,1750443041073,-490.0,0.00026378,4]
[366777980,1750443041083,-420.0,0.00026378,4]
[366777982,1750443041093,-490.0,0.00026378,4]
[366777984,1750443041103,-626.67309969,0.00026378,4]
[366777986,1750443041114,-403.66030782,0.00026378,4]
[366777993,1750443041170,-86.33969218,0.00026378,4]
[366777995,1750443041181,-490.0,0.00026378,4]
[366777997,1750443041191,-490.0,0.00026378,4]
[366777999,1750443041201,-490.0,0.00026378,4]
[366778001,1750443041211,-490.0,0.00026378,4]
[366778003,1750443041221,-634.59,0.00026378,4]
[366778005,1750443041231,-490.0,0.00026378,4]
[366778007,1750443041241,-235.22,0.00026378,4]
[366778008,1750443041250,-488.27955624,0.00026378,4]
[366778011,1750443041261,-490.0,0.00026378,4]
[366778013,1750443041271,-490.0,0.00026378,4]
[366778015,1750443041282,-490.0,0.00026378,4]
[366778017,1750443041292,-490.0,0.00026378,4]
[366778019,1750443041302,-490.0,0.00026378,4]
[366778021,1750443041312,-490.0,0.00026378,4]
[366778023,1750443041323,-490.0,0.00026378,4]
[366778025,1750443041333,-490.0,0.00026378,4]
[366778027,1750443041343,-490.0,0.00026378,4]
[366778029,1750443041355,-490.0,0.00026378,4]
[366778031,1750443041365,-490.0,0.00026378,4]
[366778033,1750443041375,-490.0,0.00026378,4]
[366778035,1750443041386,-512.54924328,0.00026378,4]
[366778037,1750443041396,-116.02150829,0.00026378,4]
[366778040,1750443041418,-373.97849171,0.00026378,4]
[366778043,1750443041429,-96.51453229,0.00026378,4]
[366778046,1750443041454,-393.48546771,0.00026378,4]
[366778048,1750443041464,-490.0,0.00026378,4]
[366778050,1750443041475,-447.62,0.00026378,4]
[366778052,1750443041485,-490.0,0.00026378,4]
[366778054,1750443041495,-490.0,0.00026378,4]
[366778056,1750443041507,-490.0,0.00026378,4]
[366778059,1750443041519,-490.0,0.00026378,4]
[366778061,1750443041533,-490.0,0.00026378,4]
[366778063,1750443041543,-490.0,0.00026378,4]
[366778065,1750443041553,-490.0,0.00026378,4]